[Event "Holiday Invitational-GM 2019"]
[Site "Charlotte"]
[Date "2019.12.27"]
[Round "1.1"]
[White "Jacobson, Brandon"]
[Black "Iotov, Valentin"]
[Result "1-0"]
[ECO "D10"]
[WhiteElo "2472"]
[BlackElo "2516"]
[Annotator "ChessBase"]
[PlyCount "77"]
[EventDate "2019.12.26"]
[EventType "tourn"]
[EventCountry "USA"]
[SourceTitle "playchess.com"]
[Source "ChessBase"]
[SourceQuality "1"]
[TimeControl "5400+30"]

1. d4 {[%emt 0:00:00]} d5 {[%emt 0:00:00]} 2. c4 {[%emt 0:00:00]} c6 {[%emt 0:00:00]} 3. cxd5 {[%emt 0:00:29]} cxd5 {[%emt 0:00:00]} 4. Nc3 {[%emt 0:00:04]} Nf6 {[%emt 0:04:36]} 5. Bf4 {[%emt 0:00:13]} Nc6 {[%emt 0:00:12]} 6. e3 {[%emt 0:00:05]} Bg4 {[%emt 0:07:02]} 7. Qb3 {[%emt 0:00:14]} Na5 {[%emt 0:00:17]} 8. Qa4+ {[%emt 0:00:08]} Bd7 {[%emt 0:00:03]} 9. Qc2 {[%emt 0:00:08]} e6 {[%emt 0:13:07]} 10. Bd3 {[%emt 0:00:10]} Nc6 {[%emt 0:11:26]} 11. Qe2 {[%emt 0:00:21]} Be7 {[%emt 0:00:43]} 12. h3 {[%emt 0:00:15]} O-O {[%emt 0:01:27]} 13. Nf3 {[%emt 0:00:13]} Rc8 {[%emt 0:05:02]} 14. O-O {[%emt 0:00:47]} Nh5 {[%emt 0:03:05]} 15. Bh2 {[%emt 0:00:44]} f5 {[%emt 0:00:47]} 16. Rfc1 {[%emt 0:06:57]} Nf6 {[%emt 0:01:57]} 17. Qd1 {[%emt 0:03:03]} Ne4 {[%emt 0:12:05]} 18. Ne2 {[%emt 0:11:22]} Qb6 {[%emt 0:11:22]} 19. a3 {[%emt 0:00:27]} a5 {[%emt 0:12:43]} 20. Rab1 {[%emt 0:07:32]} g5 {[%emt 0:06:21]} 21. Nc3 {[%emt 0:03:40]} Be8 {[%emt 0:03:31]} 22. Na4 {[%emt 0:11:20]} Qd8 {[%emt 0:00:22]} 23. Qb3 {[%emt 0:01:07]} Bd6 {[%emt 0:03:07]} 24. Bxd6 {[%emt 0:02:21]} Nxd6 {[%emt 0:00:10]} 25. Nc5 {[%emt 0:01:05]} Qe7 {[%emt 0:00:02]} 26. Nxg5 {[%emt 0:16:41]} Qxg5 {[%emt 0:02:26]} 27. Nxe6 {[%emt 0:00:05]} Qe7 {[%emt 0:00:25]} 28. Nxf8 {[%emt 0:00:05]} Bf7 {[%emt 0:00:46]} 29. Nxh7 {[%emt 0:00:06]} Kxh7 {[%emt 0:00:03]} 30. Qd1 {[%emt 0:00:11]} Qg5 {[%emt 0:01:06]} 31. Kh2 {[%emt 0:01:56]} Ne4 {[%emt 0:00:38]} 32. Bxe4 {[%emt 0:03:27]} dxe4 {[%emt 0:00:01]} 33. f4 {[%emt 0:00:11]} exf3 {[%emt 0:00:50]} 34. Qxf3 {[%emt 0:00:03]} Nxd4 {[%emt 0:00:41]} 35. Qxb7 {[%emt 0:00:10]} Rg8 {[%emt 0:00:35]} 36. exd4 {[%emt 0:00:43]} Rg7 {[%emt 0:00:11]} 37. Qf3 {[%emt 0:00:41]} f4 {[%emt 0:00:07]} 38. Rc5 {[%emt 0:00:46]} Qh4 {[%emt 0:00:01]} 39. Rf1 {[%emt 0:00:32]} 1-0

[Event "Holiday Invitational-GM 2019"]
[Site "Charlotte"]
[Date "2019.12.27"]
[Round "1.2"]
[White "Steingrimsson, Hedinn"]
[Black "Sinha, Sahil"]
[Result "1/2-1/2"]
[ECO "A18"]
[WhiteElo "2530"]
[BlackElo "2296"]
[Annotator "ChessBase"]
[PlyCount "73"]
[EventDate "2019.12.26"]
[EventType "tourn"]
[EventCountry "USA"]
[SourceTitle "playchess.com"]
[Source "ChessBase"]
[SourceQuality "1"]
[TimeControl "5400+30"]

1. c4 {[%emt 0:00:00]} Nf6 {[%emt 0:00:00]} 2. Nc3 {[%emt 0:00:00]} e6 {[%emt 0:00:06]} 3. e4 {[%emt 0:00:00]} d5 {[%emt 0:00:10]} 4. e5 {[%emt 0:00:00]} d4 {[%emt 0:00:09]} 5. exf6 {[%emt 0:00:00]} dxc3 {[%emt 0:00:10]} 6. bxc3 {[%emt 0:00:00]} Qxf6 {[%emt 0:00:07]} 7. Nf3 {[%emt 0:00:03]} Nc6 {[%emt 0:00:32]} 8. Bd3 {[%emt 0:00:03]} e5 {[%emt 0:01:19]} 9. O-O {[%emt 0:00:31]} Bc5 {[%emt 0:02:08]} 10. Re1 {[%emt 0:03:20]} O-O {[%emt 0:02:21]} 11. Qc2 {[%emt 0:00:05]} h6 {[%emt 0:01:29]} 12. Bh7+ {[%emt 0:02:33]} Kh8 {[%emt 0:00:04]} 13. Be4 {[%emt 0:00:05]} Bd7 {[%emt 0:06:26]} 14. h3 {[%emt 0:08:22]} Rad8 {[%emt 0:03:53]} 15. Bb2 {[%emt 0:00:40]} Rfe8 {[%emt 0:03:23]} 16. Rad1 {[%emt 0:09:19]} Be6 {[%emt 0:01:57]} 17. d3 {[%emt 0:04:38]} a6 {[%emt 0:03:54]} 18. Re2 {[%emt 0:10:57]} Kg8 {[%emt 0:11:00]} 19. Rde1 {[%emt 0:09:00]} Bd7 {[%emt 0:03:13]} 20. a4 {[%emt 0:27:24]} b6 {[%emt 0:03:38]} 21. Qb1 {[%emt 0:00:14]} a5 {[%emt 0:08:19]} 22. Qa1 {[%emt 0:00:45]} Qd6 {[%emt 0:03:10]} 23. Bd5 {[%emt 0:10:36]} Qg6 {[%emt 0:02:42]} 24. d4 {[%emt 0:03:17]} exd4 {[%emt 0:04:25]} 25. cxd4 {[%emt 0:00:02]} Bb4 {[%emt 0:02:02]} 26. Rxe8+ {[%emt 0:01:22]} Rxe8 {[%emt 0:00:05]} 27. Rxe8+ {[%emt 0:01:38]} Bxe8 {[%emt 0:00:05]} 28. Qd1 {[%emt 0:01:54]} Ne7 {[%emt 0:05:53]} 29. Ne5 {[%emt 0:00:26]} Qd6 {[%emt 0:01:26]} 30. Be4 {[%emt 0:00:22]} Ba3 {[%emt 0:02:39]} 31. Bc3 {[%emt 0:01:43]} Bb4 {[%emt 0:00:28]} 32. Bb2 {[%emt 0:00:04]} Ba3 {[%emt 0:00:21]} 33. Bc3 {[%emt 0:00:57]} Bb4 {[%emt 0:00:49]} 34. Ba1 {[%emt 0:00:40]} f6 {[%emt 0:01:25]} 35. Nf3 {[%emt 0:00:18]} Qd7 {[%emt 0:01:49]} 36. Bc2 {[%emt 0:00:05]} c6 {[%emt 0:03:07]} 37. Ne1 {[%emt 0:06:06]} 1/2-1/2

[Event "Holiday Invitational-GM 2019"]
[Site "Charlotte"]
[Date "2019.12.27"]
[Round "1.3"]
[White "Balakrishnan, Praveen"]
[Black "Kaliksteyn, Alexander"]
[Result "1/2-1/2"]
[ECO "D02"]
[WhiteElo "2466"]
[BlackElo "2381"]
[Annotator "ChessBase"]
[PlyCount "62"]
[EventDate "2019.12.26"]
[EventType "tourn"]
[EventCountry "USA"]
[SourceTitle "playchess.com"]
[Source "ChessBase"]
[SourceQuality "1"]
[TimeControl "5400+30"]

1. d4 {[%emt 0:00:00]} d5 {[%emt 0:00:00]} 2. Nf3 {[%emt 0:00:00]} c6 {[%emt 0:01:28]} 3. Bf4 {[%emt 0:02:47]} Nf6 {[%emt 0:01:55]} 4. e3 {[%emt 0:01:27]} Bg4 {[%emt 0:07:49]} 5. Nbd2 {[%emt 0:06:39]} e6 {[%emt 0:13:37]} 6. h3 {[%emt 0:00:59]} Bxf3 {[%emt 0:00:05]} 7. Nxf3 {[%emt 0:10:13]} Bd6 {[%emt 0:02:55]} 8. Ne5 {[%emt 0:01:53]} Qc7 {[%emt 0:03:00]} 9. Bd3 {[%emt 0:03:20]} Nbd7 {[%emt 0:03:49]} 10. Nxd7 {[%emt 0:04:26]} Nxd7 {[%emt 0:00:20]} 11. Qg4 {[%emt 0:04:17]} g6 {[%emt 0:17:12]} 12. O-O {[%emt 0:16:56]} Bxf4 {[%emt 0:04:47]} 13. exf4 {[%emt 0:01:12]} Qb6 {[%emt 0:00:30]} 14. Rfd1 {[%emt 0:07:14]} Qxb2 {[%emt 0:09:33]} 15. Rab1 {[%emt 0:00:44]} Qxd4 {[%emt 0:00:31]} 16. Rxb7 {[%emt 0:02:29]} Qf6 {[%emt 0:04:58]} 17. Rc7 {[%emt 0:05:46]} Nc5 {[%emt 0:00:54]} 18. Bf1 {[%emt 0:03:52]} O-O {[%emt 0:00:47]} 19. Rxc6 {[%emt 0:00:19]} h5 {[%emt 0:06:12]} 20. Qf3 {[%emt 0:02:34]} Rfc8 {[%emt 0:09:29]} 21. Qxd5 {[%emt 0:12:11]} exd5 {[%emt 0:00:08]} 22. Rxf6 {[%emt 0:00:04]} Ne4 {[%emt 0:00:10]} 23. Ra6 {[%emt 0:01:17]} Rxc2 {[%emt 0:00:03]} 24. Rxd5 {[%emt 0:04:42]} Rc1 {[%emt 0:05:00]} 25. g3 {[%emt 0:04:22]} Rb8 {[%emt 0:00:49]} 26. Rd4 {[%emt 0:00:36]} Nxg3 {[%emt 0:04:23]} 27. fxg3 {[%emt 0:00:09]} Rbb1 {[%emt 0:00:02]} 28. Rxa7 {[%emt 0:01:02]} Rxf1+ {[%emt 0:00:06]} 29. Kg2 {[%emt 0:00:01]} Rg1+ {[%emt 0:00:50]} 30. Kf2 {[%emt 0:00:18]} Rbf1+ {[%emt 0:01:14]} 31. Ke2 {[%emt 0:00:05]} Re1+ {[%emt 0:00:08]} 1/2-1/2

[Event "Holiday Invitational-GM 2019"]
[Site "Charlotte"]
[Date "2019.12.27"]
[Round "1.4"]
[White "Korley, Kassa"]
[Black "Karthik Venkataraman"]
[Result "1-0"]
[ECO "B13"]
[WhiteElo "2432"]
[BlackElo "2470"]
[Annotator "ChessBase"]
[PlyCount "145"]
[EventDate "2019.12.26"]
[EventType "tourn"]
[EventCountry "USA"]
[SourceTitle "playchess.com"]
[Source "ChessBase"]
[SourceQuality "1"]
[TimeControl "5400+30"]

1. d4 {[%emt 0:00:00]} c5 {[%emt 0:00:00]} 2. e3 {[%emt 0:00:00]} cxd4 {[%emt 0:00:00]} 3. exd4 {[%emt 0:00:00]} d5 {[%emt 0:00:00]} 4. Bd3 {[%emt 0:05:18]} Nc6 {[%emt 0:00:21]} 5. c3 {[%emt 0:00:03]} Qc7 {[%emt 0:00:34]} 6. Ne2 {[%emt 0:01:17]} e6 {[%emt 0:00:07]} 7. Bf4 {[%emt 0:01:20]} Bd6 {[%emt 0:00:05]} 8. Bxd6 {[%emt 0:00:07]} Qxd6 {[%emt 0:00:04]} 9. O-O {[%emt 0:01:20]} Nge7 {[%emt 0:00:06]} 10. f4 {[%emt 0:10:19]} Nf5 {[%emt 0:01:32]} 11. Qe1 {[%emt 0:04:39]} O-O {[%emt 0:00:39]} 12. Nd2 {[%emt 0:03:10]} Bd7 {[%emt 0:02:31]} 13. Ng3 {[%emt 0:03:17]} f6 {[%emt 0:02:20]} 14. Nxf5 {[%emt 0:03:01]} exf5 {[%emt 0:00:06]} 15. Qg3 {[%emt 0:00:09]} Rae8 {[%emt 0:05:00]} 16. Rae1 {[%emt 0:00:24]} Nd8 {[%emt 0:03:43]} 17. Nf3 {[%emt 0:09:13]} g6 {[%emt 0:10:50]} 18. Nh4 {[%emt 0:05:21]} Kf7 {[%emt 0:00:08]} 19. Qf3 {[%emt 0:04:50]} Rxe1 {[%emt 0:01:33]} 20. Rxe1 {[%emt 0:00:02]} Re8 {[%emt 0:00:05]} 21. Rxe8 {[%emt 0:00:10]} Kxe8 {[%emt 0:00:04]} 22. g3 {[%emt 0:00:11]} Nf7 {[%emt 0:01:37]} 23. Ng2 {[%emt 0:00:07]} Qb6 {[%emt 0:07:48]} 24. Qe2+ {[%emt 0:03:11]} Kd8 {[%emt 0:00:22]} 25. Ne3 {[%emt 0:00:34]} Be6 {[%emt 0:00:34]} 26. Nd1 {[%emt 0:02:59]} Bd7 {[%emt 0:01:04]} 27. Ne3 {[%emt 0:01:03]} Be6 {[%emt 0:00:09]} 28. Qc2 {[%emt 0:04:14]} Nd6 {[%emt 0:00:23]} 29. Bf1 {[%emt 0:00:16]} Nc8 {[%emt 0:08:27]} 30. Nd1 {[%emt 0:00:32]} Ne7 {[%emt 0:02:39]} 31. Nf2 {[%emt 0:01:07]} Bd7 {[%emt 0:01:55]} 32. Nd3 {[%emt 0:00:39]} Qd6 {[%emt 0:01:36]} 33. Nc5 {[%emt 0:01:17]} Bc8 {[%emt 0:00:41]} 34. Bg2 {[%emt 0:01:59]} b6 {[%emt 0:00:24]} 35. Nd3 {[%emt 0:00:03]} a5 {[%emt 0:00:53]} 36. b4 {[%emt 0:02:00]} Ba6 {[%emt 0:00:35]} 37. bxa5 {[%emt 0:00:43]} Bxd3 {[%emt 0:03:20]} 38. Qxd3 {[%emt 0:00:15]} bxa5 {[%emt 0:00:04]} 39. c4 {[%emt 0:01:15]} dxc4 {[%emt 0:01:33]} 40. Qxc4 {[%emt 0:00:05]} Qa3 {[%emt 0:00:45]} 41. Qe6 {[%emt 0:11:26]} a4 {[%emt 0:11:48]} 42. Bf1 {[%emt 0:01:47]} Kc7 {[%emt 0:08:15]} 43. Qxf6 {[%emt 0:00:36]} Nc6 {[%emt 0:00:56]} 44. Qf7+ {[%emt 0:00:54]} Kb6 {[%emt 0:02:42]} 45. Qe6 {[%emt 0:01:40]} Kc7 {[%emt 0:00:21]} 46. d5 {[%emt 0:02:22]} Qc5+ {[%emt 0:01:17]} 47. Kg2 {[%emt 0:00:05]} Nb4 {[%emt 0:04:03]} 48. Qe5+ {[%emt 0:00:13]} Kd7 {[%emt 0:01:34]} 49. Kh3 {[%emt 0:03:29]} Nxa2 {[%emt 0:01:54]} 50. Qe6+ {[%emt 0:01:24]} Kc7 {[%emt 0:01:44]} 51. d6+ {[%emt 0:00:22]} Qxd6 {[%emt 0:00:03]} 52. Qxa2 {[%emt 0:00:23]} Qd1 {[%emt 0:01:32]} 53. Qc4+ {[%emt 0:00:40]} Kd6 {[%emt 0:00:21]} 54. Be2 {[%emt 0:01:39]} Qb3 {[%emt 0:01:56]} 55. Qd4+ {[%emt 0:00:11]} Kc7 {[%emt 0:00:24]} 56. Qc5+ {[%emt 0:00:03]} Kb7 {[%emt 0:00:13]} 57. Bc4 {[%emt 0:03:59]} Qd1 {[%emt 0:00:17]} 58. Bd5+ {[%emt 0:01:31]} Ka6 {[%emt 0:00:33]} 59. Qc6+ {[%emt 0:02:54]} Ka5 {[%emt 0:00:04]} 60. Qc7+ {[%emt 0:00:15]} Kb5 {[%emt 0:00:50]} 61. Bc6+ {[%emt 0:00:20]} Kb4 {[%emt 0:00:11]} 62. Qb6+ {[%emt 0:00:05]} Ka3 {[%emt 0:00:54]} 63. Qc5+ {[%emt 0:00:06]} Kb3 {[%emt 0:00:32]} 64. Bd5+ {[%emt 0:00:37]} Kb2 {[%emt 0:00:04]} 65. Qb4+ {[%emt 0:00:04]} Kc1 {[%emt 0:00:03]} 66. Qa3+ {[%emt 0:02:01]} Kd2 {[%emt 0:00:05]} 67. Bc4 {[%emt 0:02:49]} Qc2 {[%emt 0:02:49]} 68. Bb5 {[%emt 0:00:20]} Qb3 {[%emt 0:00:48]} 69. Qxa4 {[%emt 0:00:27]} Qf3 {[%emt 0:00:05]} 70. Qa2+ {[%emt 0:00:28]} Ke1 {[%emt 0:00:05]} 71. Qa1+ {[%emt 0:00:22]} Kd2 {[%emt 0:00:05]} 72. Qb2+ {[%emt 0:00:07]} Ke1 {[%emt 0:00:04]} 73. Qc1+ {[%emt 0:00:04]} 1-0

[Event "Holiday Invitational-GM 2019"]
[Site "Charlotte"]
[Date "2019.12.27"]
[Round "1.5"]
[White "Wang, Justin"]
[Black "Mishra, Abhimanyu"]
[Result "1-0"]
[ECO "B48"]
[WhiteElo "2454"]
[BlackElo "2397"]
[Annotator "ChessBase"]
[PlyCount "73"]
[EventDate "2019.12.26"]
[EventType "tourn"]
[EventCountry "USA"]
[SourceTitle "playchess.com"]
[Source "ChessBase"]
[SourceQuality "1"]
[TimeControl "5400+30"]

1. e4 {[%emt 0:00:00]} c5 {[%emt 0:00:00]} 2. Nf3 {[%emt 0:00:00]} e6 {[%emt 0:00:00]} 3. d4 {[%emt 0:00:03]} cxd4 {[%emt 0:00:00]} 4. Nxd4 {[%emt 0:00:05]} Nc6 {[%emt 0:00:00]} 5. Nc3 {[%emt 0:00:45]} Qc7 {[%emt 0:00:00]} 6. Be3 {[%emt 0:00:50]} a6 {[%emt 0:00:00]} 7. Qd2 {[%emt 0:01:37]} Nf6 {[%emt 0:01:34]} 8. O-O-O {[%emt 0:02:04]} Be7 {[%emt 0:04:35]} 9. f3 {[%emt 0:01:44]} b5 {[%emt 0:02:31]} 10. Nxc6 {[%emt 0:02:56]} dxc6 {[%emt 0:00:14]} 11. g4 {[%emt 0:00:34]} a5 {[%emt 0:10:45]} 12. g5 {[%emt 0:23:03]} Nd7 {[%emt 0:02:15]} 13. f4 {[%emt 0:02:26]} a4 {[%emt 0:19:52]} 14. e5 {[%emt 0:01:46]} O-O {[%emt 0:09:21]} 15. Ne4 {[%emt 0:00:32]} Rd8 {[%emt 0:03:58]} 16. Bd3 {[%emt 0:03:42]} Kh8 {[%emt 0:03:55]} 17. Qg2 {[%emt 0:04:05]} b4 {[%emt 0:08:40]} 18. Nd6 {[%emt 0:05:39]} Kg8 {[%emt 0:04:23]} 19. Be4 {[%emt 0:04:54]} b3 {[%emt 0:06:03]} 20. a3 {[%emt 0:00:29]} Ba6 {[%emt 0:04:54]} 21. Qh3 {[%emt 0:01:56]} Nf8 {[%emt 0:00:58]} 22. Bxh7+ {[%emt 0:01:19]} Nxh7 {[%emt 0:01:02]} 23. g6 {[%emt 0:01:25]} Ng5 {[%emt 0:01:32]} 24. fxg5 {[%emt 0:00:27]} fxg6 {[%emt 0:00:03]} 25. Qxe6+ {[%emt 0:00:12]} Kh7 {[%emt 0:00:03]} 26. Rd4 {[%emt 0:01:08]} Bxg5 {[%emt 0:03:32]} 27. Bxg5 {[%emt 0:00:03]} Be2 {[%emt 0:00:19]} 28. Rh4+ {[%emt 0:01:20]} Bh5 {[%emt 0:00:03]} 29. Bxd8 {[%emt 0:00:36]} Qxd8 {[%emt 0:00:30]} 30. Rxh5+ {[%emt 0:00:12]} gxh5 {[%emt 0:00:07]} 31. Qf5+ {[%emt 0:00:09]} Kg8 {[%emt 0:00:37]} 32. Qf7+ {[%emt 0:00:05]} Kh7 {[%emt 0:00:07]} 33. Qxh5+ {[%emt 0:00:07]} Kg8 {[%emt 0:00:04]} 34. Qf7+ {[%emt 0:00:05]} Kh7 {[%emt 0:00:20]} 35. Rg1 {[%emt 0:00:18]} Qf8 {[%emt 0:00:08]} 36. Qxf8 {[%emt 0:00:18]} Rxf8 {[%emt 0:00:04]} 37. e6 {[%emt 0:00:03]} 1-0

[Event "Holiday Invitational-GM 2019"]
[Site "Charlotte"]
[Date "2019.12.27"]
[Round "2.1"]
[White "Jacobson, Brandon"]
[Black "Steingrimsson, Hedinn"]
[Result "1/2-1/2"]
[ECO "C54"]
[WhiteElo "2472"]
[BlackElo "2530"]
[Annotator "ChessBase"]
[PlyCount "32"]
[EventDate "2019.12.26"]
[EventType "tourn"]
[EventCountry "USA"]
[SourceTitle "playchess.com"]
[Source "ChessBase"]
[SourceQuality "1"]
[TimeControl "5400+30"]

1. e4 {[%emt 0:01:09]} e5 {[%emt 0:00:00]} 2. Nf3 {[%emt 0:00:09]} Nc6 {[%emt 0:00:00]} 3. Bc4 {[%emt 0:00:07]} Nf6 {[%emt 0:00:00]} 4. d3 {[%emt 0:00:04]} Bc5 {[%emt 0:00:00]} 5. c3 {[%emt 0:00:07]} a6 {[%emt 0:02:27]} 6. O-O {[%emt 0:00:14]} d6 {[%emt 0:00:13]} 7. a4 {[%emt 0:00:05]} Ba7 {[%emt 0:00:24]} 8. Nbd2 {[%emt 0:00:06]} O-O {[%emt 0:01:28]} 9. h3 {[%emt 0:00:36]} h6 {[%emt 0:00:14]} 10. Re1 {[%emt 0:01:49]} Re8 {[%emt 0:00:08]} 11. b4 {[%emt 0:04:02]} Be6 {[%emt 0:01:41]} 12. Bxe6 {[%emt 0:00:12]} Rxe6 {[%emt 0:00:03]} 13. Qc2 {[%emt 0:00:07]} Qd7 {[%emt 0:06:03]} 14. Rb1 {[%emt 0:00:07]} b5 {[%emt 0:23:40]} 15. Nf1 {[%emt 0:15:47]} d5 {[%emt 0:05:31]} 16. Be3 {[%emt 0:07:25]} Bxe3 {[%emt 0:01:57]} 1/2-1/2

[Event "Holiday Invitational-GM 2019"]
[Site "Charlotte"]
[Date "2019.12.27"]
[Round "2.2"]
[White "Karthik Venkataraman"]
[Black "Wang, Justin"]
[Result "1-0"]
[ECO "C77"]
[WhiteElo "2470"]
[BlackElo "2454"]
[Annotator "ChessBase"]
[PlyCount "111"]
[EventDate "2019.12.26"]
[EventType "tourn"]
[EventCountry "USA"]
[SourceTitle "playchess.com"]
[Source "ChessBase"]
[SourceQuality "1"]
[TimeControl "5400+30"]

1. e4 {[%emt 0:00:00]} e5 {[%emt 0:00:00]} 2. Nf3 {[%emt 0:00:00]} Nc6 {[%emt 0:00:00]} 3. Bb5 {[%emt 0:00:05]} a6 {[%emt 0:00:06]} 4. Ba4 {[%emt 0:00:03]} Nf6 {[%emt 0:00:05]} 5. Nc3 {[%emt 0:00:27]} b5 {[%emt 0:06:13]} 6. Bb3 {[%emt 0:00:04]} Be7 {[%emt 0:00:08]} 7. a4 {[%emt 0:00:09]} b4 {[%emt 0:06:27]} 8. Nd5 {[%emt 0:00:05]} O-O {[%emt 0:11:09]} 9. Nxf6+ {[%emt 0:00:17]} Bxf6 {[%emt 0:00:14]} 10. O-O {[%emt 0:01:52]} Rb8 {[%emt 0:06:54]} 11. Bd5 {[%emt 0:03:28]} Ne7 {[%emt 0:03:56]} 12. Bc4 {[%emt 0:00:23]} Ng6 {[%emt 0:06:01]} 13. Re1 {[%emt 0:04:22]} Bb7 {[%emt 0:01:30]} 14. d3 {[%emt 0:02:54]} a5 {[%emt 0:01:00]} 15. Be3 {[%emt 0:01:32]} Re8 {[%emt 0:04:44]} 16. Nd2 {[%emt 0:11:14]} c6 {[%emt 0:01:45]} 17. Ba2 {[%emt 0:01:48]} Ba6 {[%emt 0:19:10]} 18. Nb3 {[%emt 0:00:40]} d6 {[%emt 0:03:18]} 19. g3 {[%emt 0:00:24]} Qc7 {[%emt 0:00:34]} 20. h4 {[%emt 0:01:46]} Nf8 {[%emt 0:01:48]} 21. Nd2 {[%emt 0:03:10]} Ne6 {[%emt 0:01:38]} 22. Nf3 {[%emt 0:00:09]} Bb7 {[%emt 0:02:02]} 23. Nh2 {[%emt 0:05:48]} d5 {[%emt 0:01:56]} 24. Ng4 {[%emt 0:02:50]} Be7 {[%emt 0:00:19]} 25. Qf3 {[%emt 0:00:07]} Rbd8 {[%emt 0:00:38]} 26. Qf5 {[%emt 0:01:24]} Bc5 {[%emt 0:10:13]} 27. exd5 {[%emt 0:08:09]} Nd4 {[%emt 0:03:03]} 28. d6 {[%emt 0:08:48]} Rxd6 {[%emt 0:03:26]} 29. Qh5 {[%emt 0:19:04]} Nf3+ {[%emt 0:01:27]} 30. Kf1 {[%emt 0:00:32]} Bxe3 {[%emt 0:02:18]} 31. Rxe3 {[%emt 0:00:04]} c5 {[%emt 0:02:07]} 32. Qf5 {[%emt 0:09:03]} Nd4 {[%emt 0:01:13]} 33. Rxe5 {[%emt 0:01:57]} Rf8 {[%emt 0:00:21]} 34. Rxc5 {[%emt 0:01:20]} Qb6 {[%emt 0:00:32]} 35. Qe5 {[%emt 0:00:56]} b3 {[%emt 0:00:32]} 36. Bxb3 {[%emt 0:00:26]} Nxb3 {[%emt 0:00:19]} 37. cxb3 {[%emt 0:00:10]} Re6 {[%emt 0:00:40]} 38. Qc3 {[%emt 0:00:54]} Rfe8 {[%emt 0:00:35]} 39. d4 {[%emt 0:01:29]} Qa6+ {[%emt 0:00:27]} 40. Kg1 {[%emt 0:02:24]} Qe2 {[%emt 0:00:09]} 41. d5 {[%emt 0:00:02]} Rg6 {[%emt 0:00:48]} 42. Nh2 {[%emt 0:02:53]} h5 {[%emt 0:00:33]} 43. Nf3 {[%emt 0:02:42]} Qa6 {[%emt 0:00:38]} 44. Re1 {[%emt 0:00:13]} Rd8 {[%emt 0:00:20]} 45. Ne5 {[%emt 0:00:27]} Rf6 {[%emt 0:00:03]} 46. Nc6 {[%emt 0:00:06]} Bxc6 {[%emt 0:00:24]} 47. Rxc6 {[%emt 0:00:10]} Rxc6 {[%emt 0:00:03]} 48. Qxc6 {[%emt 0:00:23]} Qd3 {[%emt 0:00:04]} 49. Re8+ {[%emt 0:00:13]} Rxe8 {[%emt 0:00:07]} 50. Qxe8+ {[%emt 0:00:03]} Kh7 {[%emt 0:00:05]} 51. Qxf7 {[%emt 0:00:07]} Qxb3 {[%emt 0:00:13]} 52. Qxh5+ {[%emt 0:00:06]} Kg8 {[%emt 0:00:02]} 53. Qe8+ {[%emt 0:00:23]} Kh7 {[%emt 0:00:03]} 54. Qe4+ {[%emt 0:00:06]} Kg8 {[%emt 0:00:04]} 55. Qd4 {[%emt 0:00:04]} Qc2 {[%emt 0:00:27]} 56. d6 {[%emt 0:00:07]} 1-0

[Event "Holiday Invitational-GM 2019"]
[Site "Charlotte"]
[Date "2019.12.27"]
[Round "2.3"]
[White "Kaliksteyn, Alexander"]
[Black "Korley, Kassa"]
[Result "1/2-1/2"]
[ECO "D02"]
[WhiteElo "2381"]
[BlackElo "2432"]
[Annotator "ChessBase"]
[PlyCount "86"]
[EventDate "2019.12.26"]
[EventType "tourn"]
[EventCountry "USA"]
[SourceTitle "playchess.com"]
[Source "ChessBase"]
[SourceQuality "1"]
[TimeControl "5400+30"]

1. d4 {[%emt 0:00:00]} d5 {[%emt 0:01:21]} 2. Bf4 {[%emt 0:00:00]} Nf6 {[%emt 0:00:05]} 3. e3 {[%emt 0:00:15]} e6 {[%emt 0:00:04]} 4. Nf3 {[%emt 0:00:25]} Bd6 {[%emt 0:00:06]} 5. Bg3 {[%emt 0:00:23]} O-O {[%emt 0:00:29]} 6. Nbd2 {[%emt 0:00:15]} c5 {[%emt 0:00:47]} 7. c3 {[%emt 0:00:48]} Qc7 {[%emt 0:04:25]} 8. Bxd6 {[%emt 0:04:33]} Qxd6 {[%emt 0:00:02]} 9. Ne5 {[%emt 0:00:07]} Nfd7 {[%emt 0:08:41]} 10. f4 {[%emt 0:01:23]} f6 {[%emt 0:10:40]} 11. Nxd7 {[%emt 0:00:27]} Bxd7 {[%emt 0:03:54]} 12. Bd3 {[%emt 0:04:07]} cxd4 {[%emt 0:14:15]} 13. cxd4 {[%emt 0:00:31]} e5 {[%emt 0:02:21]} 14. Qh5 {[%emt 0:34:46]} e4 {[%emt 0:01:02]} 15. Bc2 {[%emt 0:03:45]} g6 {[%emt 0:08:15]} 16. Qe2 {[%emt 0:07:36]} a6 {[%emt 0:02:08]} 17. Bb3 {[%emt 0:02:58]} Kg7 {[%emt 0:00:28]} 18. Nb1 {[%emt 0:02:16]} Bb5 {[%emt 0:04:00]} 19. Qd2 {[%emt 0:00:41]} Rc8 {[%emt 0:11:41]} 20. Nc3 {[%emt 0:01:57]} Bc4 {[%emt 0:00:02]} 21. Bxc4 {[%emt 0:02:35]} Rxc4 {[%emt 0:01:07]} 22. O-O {[%emt 0:00:42]} Nd7 {[%emt 0:00:03]} 23. Rac1 {[%emt 0:01:26]} Rac8 {[%emt 0:00:06]} 24. b3 {[%emt 0:01:51]} R4c6 {[%emt 0:00:32]} 25. Ne2 {[%emt 0:00:17]} Qa3 {[%emt 0:02:22]} 26. Rxc6 {[%emt 0:00:40]} Rxc6 {[%emt 0:00:02]} 27. Rc1 {[%emt 0:00:10]} Rxc1+ {[%emt 0:00:34]} 28. Nxc1 {[%emt 0:00:09]} Nb8 {[%emt 0:00:54]} 29. Ne2 {[%emt 0:01:52]} Nc6 {[%emt 0:00:04]} 30. h3 {[%emt 0:00:23]} Kf7 {[%emt 0:01:18]} 31. Nc3 {[%emt 0:00:44]} Nb4 {[%emt 0:01:36]} 32. Kh2 {[%emt 0:00:45]} h5 {[%emt 0:02:53]} 33. f5 {[%emt 0:09:08]} gxf5 {[%emt 0:01:33]} 34. Qf2 {[%emt 0:08:07]} Qc1 {[%emt 0:04:08]} 35. Qxf5 {[%emt 0:01:26]} Qxc3 {[%emt 0:00:05]} 36. Qd7+ {[%emt 0:00:55]} Kf8 {[%emt 0:00:07]} 37. Qd8+ {[%emt 0:00:28]} Kf7 {[%emt 0:00:11]} 38. Qd7+ {[%emt 0:00:06]} Kf8 {[%emt 0:00:02]} 39. Qd8+ {[%emt 0:00:10]} Kg7 {[%emt 0:00:02]} 40. Qe7+ {[%emt 0:01:14]} Kg6 {[%emt 0:00:06]} 41. Qe8+ {[%emt 0:00:15]} Kg7 {[%emt 0:00:03]} 42. Qe7+ {[%emt 0:00:08]} Kg6 {[%emt 0:00:01]} 43. Qe8+ {[%emt 0:00:07]} Kg7 {[%emt 0:09:31]} 1/2-1/2